Workbook

Sheet Calculadora - Mediação
B1: Cálculo das Custas Iniciais - MEDIAÇÃO
B3: Associado (Desconto de 10% na Taxa da Administração e Honorários de Mediador) | C3: Não
B5: + de cinco causas na mesma data (Desconto de 20% na Taxa de Administração) | C5: Não
B7: Associado + 05 causas na mesma data (Desconto de 30% na Taxa de Administração + 10% Honorário de Mediador) | C7: Não
B9: Inserir o Valor da Causa | C9: R$ 180,232.20
B10: Adiantamento de TX de Despesas | C10: ='Base para cálculo'!J38 -> R$ 1,000.00
B12: Adiantamento de TX de Despesas (Recolhida: Sim ou Não) | C12: Não
B14: Custas Iniciais
B16: Inserir a Quantidade de Polo Solicitante (A) | C16: 1
B17: Inserir a Quantidade de Outros Polos (B) | C17: 1
B18: Inserir a Quantidade de Mediador | C18: 1
B20: Verba | C20: R$
B21: Taxa de Administração - Total a ser divido entre todos os integrantes da mediação | C21: =IF(C3="sim",'Base para cálculo'!J7,IF('Calculadora - Mediação'!C5:D5="Sim",'Base para cálculo'!J10,IF('Calculadora - Mediação'!C7:D7="Sim",'Base para cálculo'!J14,'Base para cálculo'!J5)))*(C16+C17) -> R$ 3,604.64
B22: Honorários de Mediador - Total a ser dividido entre os Polos A e B | C22: =IF(C3="Sim",'Base para cálculo'!J29,IF('Calculadora - Mediação'!C7:D7="Sim",'Base para cálculo'!J29,'Base para cálculo'!J27))*C18 -> R$ 3,500.00
B23: Despesas - Total a ser a dividido entre os Polos A e B | C23: ='Base para cálculo'!J38*2 -> R$ 2,000.00
B24: Total | C24: =SUM(C21:D23) -> R$ 9,104.64
B26: Boleto | C26: Boleto - Integrante de A | D26: Boleto - Integrante de B
B27: Taxa de Administração | C27: =C21/(C33+C34) -> R$ 1,802.32 | D27: =C21/(C33+C34) -> R$ 1,802.32
B28: Honorários de Mediador | C28: =(C22/2)/C33 -> R$ 1,750.00 | D28: =(C22/2)/C34 -> R$ 1,750.00
B29: Despesas | C29: =IF(C12="sim",0,(C23/2)/C33) -> R$ 1,000.00 | D29: =(C23/2)/C34 -> R$ 1,000.00
B30: Valor do Boleto | C30: =SUM(C27:C29) -> R$ 4,552.32 | D30: =SUM(D27:D29) -> R$ 4,552.32
B32: Valor a Recolher por Polo | C32: Qtde. | D32: R$
B33: Quota Polo A | C33: =C16 -> 1 | D33: =(C27*C33)+(C28*C33)+(C29*C33) -> R$ 4,552.32
B34: Quota Polo B | C34: =C17 -> 1 | D34: =(D27*C34)+(D28*C34)+(D29*C34) -> R$ 4,552.32
B35: Total a Recolher | C35: =SUM(C33:C34) -> 2 | D35: =SUM(D33:D34) -> R$ 9,104.64
B37: Base de cálculo Taxa de Administração: (R$ Causa x 1%) x Qtde. de integrantes nos Polos A e B (Teto mínimo de R$1.000,00 e Teto máximo de R$5.000,00 por integrante)
B38: Base de cálculo Honorários de Mediador: (Hora x R$350,00 a R$1.000,00 x Qtde. de Mediador / Polo) / Qtde. de Integrantes de cada Polo
B39: Base de cálculo Despesas: (R$ despesas / Polo) / Qtde. de Integrantes de cada Polo

Sheet Base para cálculo
A1: Cálculo - Taxa de Administração | I1: Para calcular o valor da taxa de administração, insira o valor da causa no campo abaixo marcado em vermelho:
A2: Valor da Causa
A3: Mínimo | B3: Máximo | C3: % - R$ | I3: Valor da causa: | J3: ='Calculadora - Mediação'!C9 -> R$ 180,232.20
A4: 0 | B4: 99,999.99 | C4: 1,000.00
A5: 100,000.00 | B5: 499,999.99 | C5: 1.00% | I5: Valor do Taxa de Administração: | J5: =IF(J3<=B4,C4,IF(J3<=B5,(J3*C5),IF(J3>=A6,C6))) -> R$ 1,802.32
A6: 500,000.00 | B6: 0 | C6: 5,000.00
I7: Valor do Taxa de Administração: | J7: =J5-(J5*10%) -> R$ 1,622.09
I8: com desconto de 10% (Associado)
I10: Valor do Taxa de Administração: | J10: =J5-(J5*20%) -> R$ 1,441.86
I11: com desconto de 20%
I12: (+ de 05 causas na mesma data)
I14: Valor do Taxa de Administração: | J14: =J5-(J5*30%) -> R$ 1,261.63
I15: com desconto de 30%
I16: (+ de 05 causas na mesma data + Associado)
A20: Cálculo - Taxa de Honorários de Árbitros | I20: Base de cálculo:
A21: Valor da Causa | C21: Honorários | I21: (R$ causa - R$ mínima ou máxima da faixa) * % da faixa + Honorário mínimo ou máximo da faixa
A22: Mínimo | B22: Máximo | C22: Mínimo | D22: Intermediário | G22: Máximo
A23: 0 | B23: 500,000.00 | C23: 10.00 | D23: mínimo x | E23: 350.00 | G23: =E23*C23 -> 3,500 | I23: Para calcular o valor dos honorários, insira o valor da causa no campo abaixo marcado em vermelho:
A24: 500,000.01 | B24: 1,000,000.00 | C24: 20.00 | D24: mínimo x | E24: 500.00 | G24: =E24*C24 -> 10,000
A25: 1,000,000.01 | B25: 2,000,000.00 | C25: 20.00 | D25: mínimo x | E25: 700.00 | G25: =E25*C25 -> 14,000 | I25: Valor da causa: | J25: =J3 -> 180,232.20
A26: 2,000,000.01 | B26: 10,000,000.00 | C26: 20.00 | D26: mínimo x | E26: 900.00 | G26: =E26*C26 -> 18,000
A27: 10,000,000.01 | B27: - | C27: 20.00 | D27: mínimo x | E27: 1,000.00 | G27: =E27*C27 -> 20,000 | I27: Valor do honorário: | J27: =IF(J25<=B23,(C23*E23),IF(J25<=B24,(C24*E24),IF(J25<=B25,(C25*E25),IF(J25<=B26,(C26*E26),IF(J25>=A27,(C27*E27)))))) -> 3,500.00
I29: Valor do honorário de mediador | J29: =J27-(J27*10%) -> R$ 3,150.00
I30: com desconto de 10% (Associado)
A34: Cálculo - Taxa de Despesas | I34: Para calcular o valor da taxa de administração, insira o valor da causa no campo abaixo marcado em vermelho:
A35: Valor da Causa
A36: Mínimo | B36: Máximo | C36: R$ | I36: Valor da causa: | J36: =J25 -> R$ 180,232.20
A37: 0 | B37: 999,999.99 | C37: 1,000.00
A38: 1,000,000.00 | B38: 0 | C38: 1,000.00 | I38: Valor do Taxa de Despesas: | J38: =IF(J36<=B37,C37,IF(J36>=A38,C38)) -> R$ 1,000.00

Sheet Tabela de Custas
C1: Custas Mediação
A2: Valora da Causa | C2: Taxa de Administração - 1% | D2: Taxa de Honorários de Mediador | E2: Taxa de Despesas | G2: Total
A3: 0 | C3: R$ 1,000.00 | D3: =350*10 -> R$ 3,500.00 | E3: R$ 1,000.00 | G3: =SUM(C3:F3) -> R$ 5,500.00
A4: R$ 1,000.00 | C4: R$ 1,000.00 | D4: =350*10 -> R$ 3,500.00 | E4: R$ 1,000.00 | G4: =SUM(C4:F4) -> R$ 5,500.00
A5: R$ 10,000.00 | C5: R$ 1,000.00 | D5: R$ 3,500.00 | E5: R$ 1,000.00 | G5: R$ 5,500.00
A6: R$ 20,000.00 | C6: R$ 1,000.00 | D6: R$ 3,500.00 | E6: R$ 1,000.00 | G6: R$ 5,500.00
A7: R$ 30,000.00 | C7: R$ 1,000.00 | D7: R$ 3,500.00 | E7: R$ 1,000.00 | G7: R$ 5,500.00
A8: R$ 40,000.00 | C8: R$ 1,000.00 | D8: R$ 3,500.00 | E8: R$ 1,000.00 | G8: R$ 5,500.00
A9: R$ 50,000.00 | C9: R$ 1,000.00 | D9: R$ 3,500.00 | E9: R$ 1,000.00 | G9: R$ 5,500.00
A10: R$ 60,000.00 | C10: R$ 1,000.00 | D10: R$ 3,500.00 | E10: R$ 1,000.00 | G10: R$ 5,500.00
A11: R$ 70,000.00 | C11: R$ 1,000.00 | D11: R$ 3,500.00 | E11: R$ 1,000.00 | G11: R$ 5,500.00
A12: R$ 80,000.00 | C12: R$ 1,000.00 | D12: R$ 3,500.00 | E12: R$ 1,000.00 | G12: R$ 5,500.00
A13: R$ 90,000.00 | C13: R$ 1,000.00 | D13: R$ 3,500.00 | E13: R$ 1,000.00 | G13: R$ 5,500.00
A14: R$ 100,000.00 | C14: =A14*1% -> R$ 1,000.00 | D14: R$ 3,500.00 | E14: R$ 1,000.00 | G14: R$ 5,500.00
A15: R$ 110,000.00 | C15: R$ 1,100.00 | D15: R$ 3,500.00 | E15: R$ 1,000.00 | G15: R$ 5,600.00
A16: R$ 120,000.00 | C16: R$ 1,200.00 | D16: R$ 3,500.00 | E16: R$ 1,000.00 | G16: R$ 5,700.00
A17: R$ 130,000.00 | C17: R$ 1,300.00 | D17: R$ 3,500.00 | E17: R$ 1,000.00 | G17: R$ 5,800.00
A18: R$ 140,000.00 | C18: R$ 1,400.00 | D18: R$ 3,500.00 | E18: R$ 1,000.00 | G18: R$ 5,900.00
A19: R$ 150,000.00 | C19: R$ 1,500.00 | D19: R$ 3,500.00 | E19: R$ 1,000.00 | G19: R$ 6,000.00
A20: R$ 160,000.00 | C20: R$ 1,600.00 | D20: R$ 3,500.00 | E20: R$ 1,000.00 | G20: R$ 6,100.00
A21: R$ 170,000.00 | C21: R$ 1,700.00 | D21: R$ 3,500.00 | E21: R$ 1,000.00 | G21: R$ 6,200.00
A22: R$ 180,000.00 | C22: R$ 1,800.00 | D22: R$ 3,500.00 | E22: R$ 1,000.00 | G22: R$ 6,300.00
A23: R$ 190,000.00 | C23: R$ 1,900.00 | D23: R$ 3,500.00 | E23: R$ 1,000.00 | G23: R$ 6,400.00
A24: R$ 200,000.00 | C24: R$ 2,000.00 | D24: R$ 3,500.00 | E24: R$ 1,000.00 | G24: R$ 6,500.00
A25: R$ 210,000.00 | C25: R$ 2,100.00 | D25: R$ 3,500.00 | E25: R$ 1,000.00 | G25: R$ 6,600.00
A26: R$ 220,000.00 | C26: R$ 2,200.00 | D26: R$ 3,500.00 | E26: R$ 1,000.00 | G26: R$ 6,700.00
A27: R$ 230,000.00 | C27: R$ 2,300.00 | D27: R$ 3,500.00 | E27: R$ 1,000.00 | G27: R$ 6,800.00
A28: R$ 240,000.00 | C28: R$ 2,400.00 | D28: R$ 3,500.00 | E28: R$ 1,000.00 | G28: R$ 6,900.00
A29: R$ 250,000.00 | C29: R$ 2,500.00 | D29: R$ 3,500.00 | E29: R$ 1,000.00 | G29: R$ 7,000.00
A30: R$ 260,000.00 | C30: R$ 2,600.00 | D30: R$ 3,500.00 | E30: R$ 1,000.00 | G30: R$ 7,100.00
A31: R$ 270,000.00 | C31: R$ 2,700.00 | D31: R$ 3,500.00 | E31: R$ 1,000.00 | G31: R$ 7,200.00
A32: R$ 280,000.00 | C32: R$ 2,800.00 | D32: R$ 3,500.00 | E32: R$ 1,000.00 | G32: R$ 7,300.00
A33: R$ 290,000.00 | C33: R$ 2,900.00 | D33: R$ 3,500.00 | E33: R$ 1,000.00 | G33: R$ 7,400.00
A34: R$ 300,000.00 | C34: R$ 3,000.00 | D34: R$ 3,500.00 | E34: R$ 1,000.00 | G34: R$ 7,500.00
A35: R$ 310,000.00 | C35: R$ 3,100.00 | D35: R$ 3,500.00 | E35: R$ 1,000.00 | G35: R$ 7,600.00
A36: R$ 320,000.00 | C36: R$ 3,200.00 | D36: R$ 3,500.00 | E36: R$ 1,000.00 | G36: R$ 7,700.00
A37: R$ 330,000.00 | C37: R$ 3,300.00 | D37: R$ 3,500.00 | E37: R$ 1,000.00 | G37: R$ 7,800.00
A38: R$ 340,000.00 | C38: R$ 3,400.00 | D38: R$ 3,500.00 | E38: R$ 1,000.00 | G38: R$ 7,900.00
A39: R$ 350,000.00 | C39: R$ 3,500.00 | D39: R$ 3,500.00 | E39: R$ 1,000.00 | G39: R$ 8,000.00
A40: R$ 360,000.00 | C40: R$ 3,600.00 | D40: R$ 3,500.00 | E40: R$ 1,000.00 | G40: R$ 8,100.00
A41: R$ 370,000.00 | C41: R$ 3,700.00 | D41: R$ 3,500.00 | E41: R$ 1,000.00 | G41: R$ 8,200.00
A42: R$ 380,000.00 | C42: R$ 3,800.00 | D42: R$ 3,500.00 | E42: R$ 1,000.00 | G42: R$ 8,300.00
A43: R$ 390,000.00 | C43: R$ 3,900.00 | D43: R$ 3,500.00 | E43: R$ 1,000.00 | G43: R$ 8,400.00
A44: R$ 400,000.00 | C44: R$ 4,000.00 | D44: R$ 3,500.00 | E44: R$ 1,000.00 | G44: R$ 8,500.00
A45: R$ 410,000.00 | C45: R$ 4,100.00 | D45: R$ 3,500.00 | E45: R$ 1,000.00 | G45: R$ 8,600.00
A46: R$ 420,000.00 | C46: R$ 4,200.00 | D46: R$ 3,500.00 | E46: R$ 1,000.00 | G46: R$ 8,700.00
A47: R$ 430,000.00 | C47: R$ 4,300.00 | D47: R$ 3,500.00 | E47: R$ 1,000.00 | G47: R$ 8,800.00
A48: R$ 440,000.00 | C48: R$ 4,400.00 | D48: R$ 3,500.00 | E48: R$ 1,000.00 | G48: R$ 8,900.00
A49: R$ 450,000.00 | C49: R$ 4,500.00 | D49: R$ 3,500.00 | E49: R$ 1,000.00 | G49: R$ 9,000.00
A50: R$ 460,000.00 | C50: R$ 4,600.00 | D50: R$ 3,500.00 | E50: R$ 1,000.00 | G50: R$ 9,100.00
A51: R$ 470,000.00 | C51: R$ 4,700.00 | D51: R$ 3,500.00 | E51: R$ 1,000.00 | G51: R$ 9,200.00
A52: R$ 480,000.00 | C52: R$ 4,800.00 | D52: R$ 3,500.00 | E52: R$ 1,000.00 | G52: R$ 9,300.00
A53: R$ 490,000.00 | C53: R$ 4,900.00 | D53: R$ 3,500.00 | E53: R$ 1,000.00 | G53: R$ 9,400.00
A54: R$ 500,000.00 | C54: R$ 5,000.00 | D54: R$ 3,500.00 | E54: R$ 1,000.00 | G54: R$ 9,500.00
A55: R$ 510,000.00 | C55: R$ 5,000.00 | D55: =500*20 -> R$ 10,000.00 | E55: R$ 1,000.00 | G55: R$ 16,000.00
A56: R$ 520,000.00 | C56: R$ 5,000.00 | D56: =500*20 -> R$ 10,000.00 | E56: R$ 1,000.00 | G56: R$ 16,000.00
A57: R$ 530,000.00 | C57: R$ 5,000.00 | D57: R$ 10,000.00 | E57: R$ 1,000.00 | G57: R$ 16,000.00
A58: R$ 540,000.00 | C58: R$ 5,000.00 | D58: R$ 10,000.00 | E58: R$ 1,000.00 | G58: R$ 16,000.00
A59: R$ 550,000.00 | C59: R$ 5,000.00 | D59: R$ 10,000.00 | E59: R$ 1,000.00 | G59: R$ 16,000.00
A60: R$ 560,000.00 | C60: R$ 5,000.00 | D60: R$ 10,000.00 | E60: R$ 1,000.00 | G60: R$ 16,000.00
A61: R$ 570,000.00 | C61: R$ 5,000.00 | D61: R$ 10,000.00 | E61: R$ 1,000.00 | G61: R$ 16,000.00
A62: R$ 580,000.00 | C62: R$ 5,000.00 | D62: R$ 10,000.00 | E62: R$ 1,000.00 | G62: R$ 16,000.00
A63: R$ 590,000.00 | C63: R$ 5,000.00 | D63: R$ 10,000.00 | E63: R$ 1,000.00 | G63: R$ 16,000.00
A64: R$ 600,000.00 | C64: R$ 5,000.00 | D64: R$ 10,000.00 | E64: R$ 1,000.00 | G64: R$ 16,000.00
A65: R$ 610,000.00 | C65: R$ 5,000.00 | D65: R$ 10,000.00 | E65: R$ 1,000.00 | G65: R$ 16,000.00
A66: R$ 620,000.00 | C66: R$ 5,000.00 | D66: R$ 10,000.00 | E66: R$ 1,000.00 | G66: R$ 16,000.00
A67: R$ 630,000.00 | C67: R$ 5,000.00 | D67: R$ 10,000.00 | E67: R$ 1,000.00 | G67: R$ 16,000.00
A68: R$ 640,000.00 | C68: R$ 5,000.00 | D68: R$ 10,000.00 | E68: R$ 1,000.00 | G68: =SUM(C68:F68) -> R$ 16,000.00
A69: R$ 650,000.00 | C69: R$ 5,000.00 | D69: R$ 10,000.00 | E69: R$ 1,000.00 | G69: R$ 16,000.00
A70: R$ 660,000.00 | C70: R$ 5,000.00 | D70: R$ 10,000.00 | E70: R$ 1,000.00 | G70: R$ 16,000.00
A71: R$ 670,000.00 | C71: R$ 5,000.00 | D71: R$ 10,000.00 | E71: R$ 1,000.00 | G71: R$ 16,000.00
A72: R$ 680,000.00 | C72: R$ 5,000.00 | D72: R$ 10,000.00 | E72: R$ 1,000.00 | G72: R$ 16,000.00
A73: R$ 690,000.00 | C73: R$ 5,000.00 | D73: R$ 10,000.00 | E73: R$ 1,000.00 | G73: R$ 16,000.00
A74: R$ 700,000.00 | C74: R$ 5,000.00 | D74: R$ 10,000.00 | E74: R$ 1,000.00 | G74: R$ 16,000.00
A75: R$ 710,000.00 | C75: R$ 5,000.00 | D75: R$ 10,000.00 | E75: R$ 1,000.00 | G75: R$ 16,000.00
A76: R$ 720,000.00 | C76: R$ 5,000.00 | D76: R$ 10,000.00 | E76: R$ 1,000.00 | G76: R$ 16,000.00
A77: R$ 730,000.00 | C77: R$ 5,000.00 | D77: R$ 10,000.00 | E77: R$ 1,000.00 | G77: R$ 16,000.00
A78: R$ 740,000.00 | C78: R$ 5,000.00 | D78: R$ 10,000.00 | E78: R$ 1,000.00 | G78: R$ 16,000.00
A79: R$ 750,000.00 | C79: R$ 5,000.00 | D79: R$ 10,000.00 | E79: R$ 1,000.00 | G79: R$ 16,000.00
A80: R$ 760,000.00 | C80: R$ 5,000.00 | D80: R$ 10,000.00 | E80: R$ 1,000.00 | G80: R$ 16,000.00
A81: R$ 770,000.00 | C81: R$ 5,000.00 | D81: R$ 10,000.00 | E81: R$ 1,000.00 | G81: R$ 16,000.00
A82: R$ 780,000.00 | C82: R$ 5,000.00 | D82: R$ 10,000.00 | E82: R$ 1,000.00 | G82: R$ 16,000.00
A83: R$ 790,000.00 | C83: R$ 5,000.00 | D83: R$ 10,000.00 | E83: R$ 1,000.00 | G83: R$ 16,000.00
A84: R$ 800,000.00 | C84: R$ 5,000.00 | D84: R$ 10,000.00 | E84: R$ 1,000.00 | G84: R$ 16,000.00
A85: R$ 810,000.00 | C85: R$ 5,000.00 | D85: R$ 10,000.00 | E85: R$ 1,000.00 | G85: R$ 16,000.00
A86: R$ 820,000.00 | C86: R$ 5,000.00 | D86: R$ 10,000.00 | E86: R$ 1,000.00 | G86: R$ 16,000.00
A87: R$ 830,000.00 | C87: R$ 5,000.00 | D87: R$ 10,000.00 | E87: R$ 1,000.00 | G87: R$ 16,000.00
A88: R$ 840,000.00 | C88: R$ 5,000.00 | D88: R$ 10,000.00 | E88: R$ 1,000.00 | G88: R$ 16,000.00
A89: R$ 850,000.00 | C89: R$ 5,000.00 | D89: R$ 10,000.00 | E89: R$ 1,000.00 | G89: R$ 16,000.00
A90: R$ 860,000.00 | C90: R$ 5,000.00 | D90: R$ 10,000.00 | E90: R$ 1,000.00 | G90: R$ 16,000.00
A91: R$ 870,000.00 | C91: R$ 5,000.00 | D91: R$ 10,000.00 | E91: R$ 1,000.00 | G91: R$ 16,000.00
A92: R$ 880,000.00 | C92: R$ 5,000.00 | D92: R$ 10,000.00 | E92: R$ 1,000.00 | G92: R$ 16,000.00
A93: R$ 890,000.00 | C93: R$ 5,000.00 | D93: R$ 10,000.00 | E93: R$ 1,000.00 | G93: R$ 16,000.00
A94: R$ 900,000.00 | C94: R$ 5,000.00 | D94: R$ 10,000.00 | E94: R$ 1,000.00 | G94: R$ 16,000.00
A95: R$ 910,000.00 | C95: R$ 5,000.00 | D95: R$ 10,000.00 | E95: R$ 1,000.00 | G95: R$ 16,000.00
A96: R$ 920,000.00 | C96: R$ 5,000.00 | D96: R$ 10,000.00 | E96: R$ 1,000.00 | G96: R$ 16,000.00
A97: R$ 930,000.00 | C97: R$ 5,000.00 | D97: R$ 10,000.00 | E97: R$ 1,000.00 | G97: R$ 16,000.00
A98: R$ 940,000.00 | C98: R$ 5,000.00 | D98: R$ 10,000.00 | E98: R$ 1,000.00 | G98: R$ 16,000.00
A99: R$ 950,000.00 | C99: R$ 5,000.00 | D99: R$ 10,000.00 | E99: R$ 1,000.00 | G99: R$ 16,000.00
A100: R$ 960,000.00 | C100: R$ 5,000.00 | D100: R$ 10,000.00 | E100: R$ 1,000.00 | G100: R$ 16,000.00
A101: R$ 970,000.00 | C101: R$ 5,000.00 | D101: R$ 10,000.00 | E101: R$ 1,000.00 | G101: R$ 16,000.00
A102: R$ 980,000.00 | C102: R$ 5,000.00 | D102: R$ 10,000.00 | E102: R$ 1,000.00 | G102: R$ 16,000.00
A103: R$ 990,000.00 | C103: R$ 5,000.00 | D103: R$ 10,000.00 | E103: R$ 1,000.00 | G103: R$ 16,000.00
A104: R$ 1,000,000.00 | C104: R$ 5,000.00 | D104: R$ 10,000.00 | E104: R$ 1,000.00 | G104: R$ 16,000.00
A105: R$ 1,000,000.01 | C105: R$ 5,000.00 | D105: =700*20 -> R$ 14,000.00 | E105: R$ 1,000.00 | G105: R$ 20,000.00
A106: R$ 1,020,000.00 | C106: R$ 5,000.00 | D106: =700*20 -> R$ 14,000.00 | E106: R$ 1,000.00 | G106: R$ 20,000.00
A107: R$ 1,030,000.00 | C107: R$ 5,000.00 | D107: R$ 14,000.00 | E107: R$ 1,000.00 | G107: R$ 20,000.00
A108: R$ 1,040,000.00 | C108: R$ 5,000.00 | D108: R$ 14,000.00 | E108: R$ 1,000.00 | G108: R$ 20,000.00
A109: R$ 1,050,000.00 | C109: R$ 5,000.00 | D109: R$ 14,000.00 | E109: R$ 1,000.00 | G109: R$ 20,000.00
A110: R$ 1,060,000.00 | C110: R$ 5,000.00 | D110: R$ 14,000.00 | E110: R$ 1,000.00 | G110: R$ 20,000.00
A111: R$ 1,070,000.00 | C111: R$ 5,000.00 | D111: R$ 14,000.00 | E111: R$ 1,000.00 | G111: R$ 20,000.00
A112: R$ 1,080,000.00 | C112: R$ 5,000.00 | D112: R$ 14,000.00 | E112: R$ 1,000.00 | G112: R$ 20,000.00
A113: R$ 1,090,000.00 | C113: R$ 5,000.00 | D113: R$ 14,000.00 | E113: R$ 1,000.00 | G113: R$ 20,000.00
A114: R$ 1,100,000.00 | C114: R$ 5,000.00 | D114: R$ 14,000.00 | E114: R$ 1,000.00 | G114: R$ 20,000.00
A115: R$ 1,110,000.00 | C115: R$ 5,000.00 | D115: R$ 14,000.00 | E115: R$ 1,000.00 | G115: R$ 20,000.00
A116: R$ 1,120,000.00 | C116: R$ 5,000.00 | D116: R$ 14,000.00 | E116: R$ 1,000.00 | G116: R$ 20,000.00
A117: R$ 1,130,000.00 | C117: R$ 5,000.00 | D117: R$ 14,000.00 | E117: R$ 1,000.00 | G117: R$ 20,000.00
A118: R$ 1,140,000.00 | C118: R$ 5,000.00 | D118: R$ 14,000.00 | E118: R$ 1,000.00 | G118: R$ 20,000.00
A119: R$ 1,150,000.00 | C119: R$ 5,000.00 | D119: R$ 14,000.00 | E119: R$ 1,000.00 | G119: R$ 20,000.00
A120: R$ 1,160,000.00 | C120: R$ 5,000.00 | D120: R$ 14,000.00 | E120: R$ 1,000.00 | G120: R$ 20,000.00
A121: R$ 1,170,000.00 | C121: R$ 5,000.00 | D121: R$ 14,000.00 | E121: R$ 1,000.00 | G121: R$ 20,000.00
A122: R$ 1,180,000.00 | C122: R$ 5,000.00 | D122: R$ 14,000.00 | E122: R$ 1,000.00 | G122: R$ 20,000.00
A123: R$ 1,190,000.00 | C123: R$ 5,000.00 | D123: R$ 14,000.00 | E123: R$ 1,000.00 | G123: R$ 20,000.00
A124: R$ 1,200,000.00 | C124: R$ 5,000.00 | D124: R$ 14,000.00 | E124: R$ 1,000.00 | G124: R$ 20,000.00
A125: R$ 1,210,000.00 | C125: R$ 5,000.00 | D125: R$ 14,000.00 | E125: R$ 1,000.00 | G125: R$ 20,000.00
A126: R$ 1,220,000.00 | C126: R$ 5,000.00 | D126: R$ 14,000.00 | E126: R$ 1,000.00 | G126: R$ 20,000.00
A127: R$ 1,230,000.00 | C127: R$ 5,000.00 | D127: R$ 14,000.00 | E127: R$ 1,000.00 | G127: R$ 20,000.00
A128: R$ 1,240,000.00 | C128: R$ 5,000.00 | D128: R$ 14,000.00 | E128: R$ 1,000.00 | G128: R$ 20,000.00
A129: R$ 1,250,000.00 | C129: R$ 5,000.00 | D129: R$ 14,000.00 | E129: R$ 1,000.00 | G129: R$ 20,000.00
A130: R$ 1,260,000.00 | C130: R$ 5,000.00 | D130: R$ 14,000.00 | E130: R$ 1,000.00 | G130: R$ 20,000.00
A131: R$ 1,270,000.00 | C131: R$ 5,000.00 | D131: R$ 14,000.00 | E131: R$ 1,000.00 | G131: R$ 20,000.00
A132: R$ 1,280,000.00 | C132: R$ 5,000.00 | D132: R$ 14,000.00 | E132: R$ 1,000.00 | G132: =SUM(C132:F132) -> R$ 20,000.00
A133: R$ 1,290,000.00 | C133: R$ 5,000.00 | D133: R$ 14,000.00 | E133: R$ 1,000.00 | G133: R$ 20,000.00
A134: R$ 1,300,000.00 | C134: R$ 5,000.00 | D134: R$ 14,000.00 | E134: R$ 1,000.00 | G134: R$ 20,000.00
A135: R$ 1,310,000.00 | C135: R$ 5,000.00 | D135: R$ 14,000.00 | E135: R$ 1,000.00 | G135: R$ 20,000.00
A136: R$ 1,320,000.00 | C136: R$ 5,000.00 | D136: R$ 14,000.00 | E136: R$ 1,000.00 | G136: R$ 20,000.00
A137: R$ 1,330,000.00 | C137: R$ 5,000.00 | D137: R$ 14,000.00 | E137: R$ 1,000.00 | G137: R$ 20,000.00
A138: R$ 1,340,000.00 | C138: R$ 5,000.00 | D138: R$ 14,000.00 | E138: R$ 1,000.00 | G138: R$ 20,000.00
A139: R$ 1,350,000.00 | C139: R$ 5,000.00 | D139: R$ 14,000.00 | E139: R$ 1,000.00 | G139: R$ 20,000.00
A140: R$ 1,360,000.00 | C140: R$ 5,000.00 | D140: R$ 14,000.00 | E140: R$ 1,000.00 | G140: R$ 20,000.00
A141: R$ 1,370,000.00 | C141: R$ 5,000.00 | D141: R$ 14,000.00 | E141: R$ 1,000.00 | G141: R$ 20,000.00
A142: R$ 1,380,000.00 | C142: R$ 5,000.00 | D142: R$ 14,000.00 | E142: R$ 1,000.00 | G142: R$ 20,000.00
A143: R$ 1,390,000.00 | C143: R$ 5,000.00 | D143: R$ 14,000.00 | E143: R$ 1,000.00 | G143: R$ 20,000.00
A144: R$ 1,400,000.00 | C144: R$ 5,000.00 | D144: R$ 14,000.00 | E144: R$ 1,000.00 | G144: R$ 20,000.00
A145: R$ 1,410,000.00 | C145: R$ 5,000.00 | D145: R$ 14,000.00 | E145: R$ 1,000.00 | G145: R$ 20,000.00
A146: R$ 1,420,000.00 | C146: R$ 5,000.00 | D146: R$ 14,000.00 | E146: R$ 1,000.00 | G146: R$ 20,000.00
A147: R$ 1,430,000.00 | C147: R$ 5,000.00 | D147: R$ 14,000.00 | E147: R$ 1,000.00 | G147: R$ 20,000.00
A148: R$ 1,440,000.00 | C148: R$ 5,000.00 | D148: R$ 14,000.00 | E148: R$ 1,000.00 | G148: R$ 20,000.00
A149: R$ 1,450,000.00 | C149: R$ 5,000.00 | D149: R$ 14,000.00 | E149: R$ 1,000.00 | G149: R$ 20,000.00
A150: R$ 1,460,000.00 | C150: R$ 5,000.00 | D150: R$ 14,000.00 | E150: R$ 1,000.00 | G150: R$ 20,000.00
A151: R$ 1,470,000.00 | C151: R$ 5,000.00 | D151: R$ 14,000.00 | E151: R$ 1,000.00 | G151: R$ 20,000.00
A152: R$ 1,480,000.00 | C152: R$ 5,000.00 | D152: R$ 14,000.00 | E152: R$ 1,000.00 | G152: R$ 20,000.00
A153: R$ 1,490,000.00 | C153: R$ 5,000.00 | D153: R$ 14,000.00 | E153: R$ 1,000.00 | G153: R$ 20,000.00
A154: R$ 1,500,000.00 | C154: R$ 5,000.00 | D154: R$ 14,000.00 | E154: R$ 1,000.00 | G154: R$ 20,000.00
A155: R$ 1,510,000.00 | C155: R$ 5,000.00 | D155: R$ 14,000.00 | E155: R$ 1,000.00 | G155: R$ 20,000.00
A156: R$ 1,520,000.00 | C156: R$ 5,000.00 | D156: R$ 14,000.00 | E156: R$ 1,000.00 | G156: R$ 20,000.00
A157: R$ 1,530,000.00 | C157: R$ 5,000.00 | D157: R$ 14,000.00 | E157: R$ 1,000.00 | G157: R$ 20,000.00
A158: R$ 1,540,000.00 | C158: R$ 5,000.00 | D158: R$ 14,000.00 | E158: R$ 1,000.00 | G158: R$ 20,000.00
A159: R$ 1,550,000.00 | C159: R$ 5,000.00 | D159: R$ 14,000.00 | E159: R$ 1,000.00 | G159: R$ 20,000.00
A160: R$ 1,560,000.00 | C160: R$ 5,000.00 | D160: R$ 14,000.00 | E160: R$ 1,000.00 | G160: R$ 20,000.00
A161: R$ 1,570,000.00 | C161: R$ 5,000.00 | D161: R$ 14,000.00 | E161: R$ 1,000.00 | G161: R$ 20,000.00
A162: R$ 1,580,000.00 | C162: R$ 5,000.00 | D162: R$ 14,000.00 | E162: R$ 1,000.00 | G162: R$ 20,000.00
A163: R$ 1,590,000.00 | C163: R$ 5,000.00 | D163: R$ 14,000.00 | E163: R$ 1,000.00 | G163: R$ 20,000.00
A164: R$ 1,600,000.00 | C164: R$ 5,000.00 | D164: R$ 14,000.00 | E164: R$ 1,000.00 | G164: R$ 20,000.00
A165: R$ 1,610,000.00 | C165: R$ 5,000.00 | D165: R$ 14,000.00 | E165: R$ 1,000.00 | G165: R$ 20,000.00
A166: R$ 1,620,000.00 | C166: R$ 5,000.00 | D166: R$ 14,000.00 | E166: R$ 1,000.00 | G166: R$ 20,000.00
A167: R$ 1,630,000.00 | C167: R$ 5,000.00 | D167: R$ 14,000.00 | E167: R$ 1,000.00 | G167: R$ 20,000.00
A168: R$ 1,640,000.00 | C168: R$ 5,000.00 | D168: R$ 14,000.00 | E168: R$ 1,000.00 | G168: R$ 20,000.00
A169: R$ 1,650,000.00 | C169: R$ 5,000.00 | D169: R$ 14,000.00 | E169: R$ 1,000.00 | G169: R$ 20,000.00
A170: R$ 1,660,000.00 | C170: R$ 5,000.00 | D170: =700*20 -> R$ 14,000.00 | E170: R$ 1,000.00 | G170: R$ 20,000.00
A171: R$ 1,670,000.00 | C171: R$ 5,000.00 | D171: R$ 14,000.00 | E171: R$ 1,000.00 | G171: R$ 20,000.00
A172: R$ 1,680,000.00 | C172: R$ 5,000.00 | D172: R$ 14,000.00 | E172: R$ 1,000.00 | G172: R$ 20,000.00
A173: R$ 1,690,000.00 | C173: R$ 5,000.00 | D173: R$ 14,000.00 | E173: R$ 1,000.00 | G173: R$ 20,000.00
A174: R$ 1,700,000.00 | C174: R$ 5,000.00 | D174: R$ 14,000.00 | E174: R$ 1,000.00 | G174: R$ 20,000.00
A175: R$ 1,710,000.00 | C175: R$ 5,000.00 | D175: R$ 14,000.00 | E175: R$ 1,000.00 | G175: R$ 20,000.00
A176: R$ 1,720,000.00 | C176: R$ 5,000.00 | D176: R$ 14,000.00 | E176: R$ 1,000.00 | G176: R$ 20,000.00
A177: R$ 1,730,000.00 | C177: R$ 5,000.00 | D177: R$ 14,000.00 | E177: R$ 1,000.00 | G177: R$ 20,000.00
A178: R$ 1,740,000.00 | C178: R$ 5,000.00 | D178: R$ 14,000.00 | E178: R$ 1,000.00 | G178: R$ 20,000.00
A179: R$ 1,750,000.00 | C179: R$ 5,000.00 | D179: R$ 14,000.00 | E179: R$ 1,000.00 | G179: R$ 20,000.00
A180: R$ 1,760,000.00 | C180: R$ 5,000.00 | D180: R$ 14,000.00 | E180: R$ 1,000.00 | G180: R$ 20,000.00
A181: R$ 1,770,000.00 | C181: R$ 5,000.00 | D181: R$ 14,000.00 | E181: R$ 1,000.00 | G181: R$ 20,000.00
A182: R$ 1,780,000.00 | C182: R$ 5,000.00 | D182: R$ 14,000.00 | E182: R$ 1,000.00 | G182: R$ 20,000.00
A183: R$ 1,790,000.00 | C183: R$ 5,000.00 | D183: R$ 14,000.00 | E183: R$ 1,000.00 | G183: R$ 20,000.00
A184: R$ 1,800,000.00 | C184: R$ 5,000.00 | D184: R$ 14,000.00 | E184: R$ 1,000.00 | G184: R$ 20,000.00
A185: R$ 1,810,000.00 | C185: R$ 5,000.00 | D185: R$ 14,000.00 | E185: R$ 1,000.00 | G185: R$ 20,000.00
A186: R$ 1,820,000.00 | C186: R$ 5,000.00 | D186: R$ 14,000.00 | E186: R$ 1,000.00 | G186: R$ 20,000.00
A187: R$ 1,830,000.00 | C187: R$ 5,000.00 | D187: R$ 14,000.00 | E187: R$ 1,000.00 | G187: R$ 20,000.00
A188: R$ 1,840,000.00 | C188: R$ 5,000.00 | D188: R$ 14,000.00 | E188: R$ 1,000.00 | G188: R$ 20,000.00
A189: R$ 1,850,000.00 | C189: R$ 5,000.00 | D189: R$ 14,000.00 | E189: R$ 1,000.00 | G189: R$ 20,000.00
A190: R$ 1,860,000.00 | C190: R$ 5,000.00 | D190: R$ 14,000.00 | E190: R$ 1,000.00 | G190: R$ 20,000.00
A191: R$ 1,870,000.00 | C191: R$ 5,000.00 | D191: R$ 14,000.00 | E191: R$ 1,000.00 | G191: R$ 20,000.00
A192: R$ 1,880,000.00 | C192: R$ 5,000.00 | D192: R$ 14,000.00 | E192: R$ 1,000.00 | G192: R$ 20,000.00
A193: R$ 1,890,000.00 | C193: R$ 5,000.00 | D193: R$ 14,000.00 | E193: R$ 1,000.00 | G193: R$ 20,000.00
A194: R$ 1,900,000.00 | C194: R$ 5,000.00 | D194: R$ 14,000.00 | E194: R$ 1,000.00 | G194: R$ 20,000.00
A195: R$ 1,910,000.00 | C195: R$ 5,000.00 | D195: R$ 14,000.00 | E195: R$ 1,000.00 | G195: R$ 20,000.00
A196: R$ 1,920,000.00 | C196: R$ 5,000.00 | D196: R$ 14,000.00 | E196: R$ 1,000.00 | G196: =SUM(C196:F196) -> R$ 20,000.00
A197: R$ 1,930,000.00 | C197: R$ 5,000.00 | D197: R$ 14,000.00 | E197: R$ 1,000.00 | G197: R$ 20,000.00
A198: R$ 1,940,000.00 | C198: R$ 5,000.00 | D198: R$ 14,000.00 | E198: R$ 1,000.00 | G198: R$ 20,000.00
A199: R$ 1,950,000.00 | C199: R$ 5,000.00 | D199: R$ 14,000.00 | E199: R$ 1,000.00 | G199: R$ 20,000.00
A200: R$ 1,960,000.00 | C200: R$ 5,000.00 | D200: R$ 14,000.00 | E200: R$ 1,000.00 | G200: R$ 20,000.00
... 4300 more rows
